[Event "44th Chess Olympiad Open 2022"]
[Site "Chennai"]
[Date "2022.08.07"]
[Round "9.26"]
[White "Olson, Hamish"]
[Black "Draskovic, Luka"]
[Result "1/2-1/2"]
[WhiteElo "2343"]
[BlackElo "2503"]
[Annotator "TA"]
[PlyCount "79"]
[EventDate "2022.??.??"]
[TimeControl "60"]

{[%evp 12,79,17,11,4,8,10,17,21,18,41,24,21,5,5,4,3,6,6,0,10,16,14,0,8,0,0,2,
12,-9,-12,-2,-6,-7,0,0,0,0,0,0,14,0,0,0,0,0,0,0,0,0,0,0,0,0,0,0,0,0,0,0,0,0,0,
0,0,0,0,0,0,0]} 1. d4 {[%emt 0:00:02]} Nf6 {[%emt 0:00:09]} 2. Nf3 {[%emt 0:00:
00]} g6 {[%emt 0:00:35]} 3. g3 {[%emt 0:03:25]} Bg7 {[%emt 0:03:23]} 4. Bg2 {
[%emt 0:00:00]} O-O {[%emt 0:00:35]} 5. O-O {[%emt 0:00:00]} d6 {[%emt 0:01:09]
} 6. c3 {[%emt 0:00:00]} Nbd7 {[%emt 0:02:39]} 7. Qc2 {[%emt 0:00:00]} Re8 {
[%emt 0:12:54] A49:1 d4 Nf6 2 Nf3 g6 3 g3: Anti-King's Indian systems.} 8. e4 {
[%emt 0:00:00]} e5 {[%emt 0:00:20]} 9. Re1 {[%emt 0:03:29]} c6 {[%emt 0:13:51]}
10. Nbd2 {[%emt 0:00:55][%cal Yb1d2,Yd2f3,Yf3e5]} d5 {[%emt 0:06:51]} 11. exd5
{[%emt 0:04:57]} Nxd5 {[%emt 0:00:40]} 12. dxe5 {[%emt 0:06:39] The position
is equal.} (12. Ne4 {with more complications.} exd4 13. Nxd4 h6 14. Bd2) 12...
Nxe5 {[%emt 0:00:35]} 13. Nxe5 {[%emt 0:00:34]} Rxe5 {[%emt 0:01:40]} 14. Rxe5
{[%emt 0:00:18]} Bxe5 {[%emt 0:00:05] [#]} 15. Nf3 $146 {[%emt 0:00:00]} ({
Predecessor:} 15. Nc4 Bg7 16. Qd1 Be6 17. Ne3 Nb6 18. Qc2 Qd7 19. b3 Nd5 20.
Nxd5 Bxd5 21. Bxd5 Qxd5 {½-½ (33) Konya,L (2126)-Szekely,G Hungary 2007})
15... Bf6 {[%emt 0:05:50]} 16. Bh6 {[%emt 0:02:09]} Bf5 {[%emt 0:00:08]} 17.
Qb3 {[%emt 0:01:12]} Qb6 {[%emt 0:00:56]} 18. Re1 {[%emt 0:06:39]} Qxb3 {
[%emt 0:04:15]} 19. axb3 {[%emt 0:00:24]} Rd8 {[%emt 0:00:21]} 20. Ne5 {
[%emt 0:16:40]} Re8 {[%emt 0:04:18]} 21. Nd3 {[%emt 0:02:07][%cal Re1e8] [#]}
Rxe1+ {[%emt 0:01:51]} 22. Nxe1 {[%emt 0:00:02]} Nb6 {[%emt 0:08:47]} 23. Be3 {
[%emt 0:02:41]} Kf8 {[%emt 0:01:13]} 24. Kf1 {[%emt 0:03:44]} Be6 {[%emt 0:00:
00]} 25. Nd3 {[%emt 0:00:59]} Nd7 {[%emt 0:08:56]} 26. Bxa7 {[%emt 0:04:01]}
Bxb3 {[%emt 0:00:07]} 27. Nc5 {[%emt 0:00:26]} Nxc5 {[%emt 0:01:28]} 28. Bxc5+
$11 {[%emt 0:00:15] Endgame KBB-KBB} Ke8 {[%emt 0:00:04]} 29. Ke2 {[%emt 0:00:
37]} Kd7 {[%emt 0:00:24]} 30. Kd3 {[%emt 0:01:15]} Be6 {[%emt 0:00:00]} 31. h4
{[%emt 0:01:30]} Bf5+ {[%emt 0:00:31]} 32. Kd2 {[%emt 0:01:51]} Be6 {[%emt 0:
00:29]} 33. b4 {[%emt 0:01:36]} Bc4 {[%emt 0:00:32]} 34. Bf3 {[%emt 0:00:00]}
h5 {[%emt 0:00:25]} 35. Bg2 {[%emt 0:01:32]} Bg7 {[%emt 0:02:56]} 36. Bh3+ {
[%emt 0:00:48]} Be6 {[%emt 0:00:04]} 37. Bg2 {[%emt 0:00:37]} Bc4 {[%emt 0:00:
05]} 38. Bh3+ {[%emt 0:00:08]} Be6 {[%emt 0:00:05]} 39. Bg2 {[%emt 0:00:10]}
Bc4 {[%emt 0:00:05]} 40. Bh3+ {[%emt 0:00:15] An interesting draw. Weighted
Error Value: White=0.03 (flawless) /Black=0.03 (flawless)} 1/2-1/2

[Event "44th Chess Olympiad Open 2022"]
[Site "Chennai"]
[Date "2022.08.07"]
[Round "9.27"]
[White "Gretarsson, Hjorvar Steinn"]
[Black "Hossain, Enamul"]
[Result "1/2-1/2"]
[WhiteElo "2563"]
[BlackElo "2377"]
[Annotator "TA"]
[PlyCount "104"]
[EventDate "2022.??.??"]
[TimeControl "60"]

{[%evp 9,104,18,37,24,30,32,31,31,28,22,22,18,27,24,34,40,40,42,47,44,45,56,92,
97,102,95,95,95,102,101,106,100,104,55,60,50,58,54,60,57,62,35,101,88,100,47,
181,189,242,240,241,227,394,244,249,256,271,270,266,265,264,264,283,118,148,
148,158,172,168,16,50,0,0,0,0,-2,-5,-10,-13,-13,-13,-65,0,-103,-94,-133,-89,
-103,0,0,0,0,0,0,0,0,0]} 1. c4 {[%emt 0:00:03]} c6 {[%emt 0:00:22]} 2. Nf3 {
[%emt 0:00:36]} d5 {[%emt 0:00:20]} 3. e3 {[%emt 0:00:13]} Nf6 {[%emt 0:00:09]}
4. d4 {[%emt 0:00:08]} e6 {[%emt 0:03:13]} 5. b3 {[%emt 0:00:32]} Ne4 {[%emt 0:
00:00]} 6. Bd3 {[%emt 0:02:12] D30: Queen's Gambit Declined: Systems without
Nc3.} Bb4+ {[%emt 0:01:35] 6...Bd6 is not played anymore.} 7. Nbd2 {[%emt 0:00:
00]} Nd7 {[%emt 0:00:54]} 8. Bb2 {[%emt 0:08:43] White is slightly better.} f5
{[%emt 0:04:48]} 9. a3 {[%emt 0:06:44]} Bd6 {[%emt 0:01:37]} 10. Ne5 {[%emt 0:
00:00]} Nxd2 {[%emt 0:16:08]} 11. Qxd2 {[%emt 0:00:09] [#]} O-O $146 {[%emt 0:
00:00]} ({Predecessor:} 11... Bxe5 12. dxe5 Nc5 13. Bc2 O-O 14. Rd1 a5 15. O-O
Ne4 16. Qe2 Qh4 17. f3 Ng5 {½-½ (36) Vul,A (2310)-Weteschnik,M Kecskemet 1991
}) 12. Qc2 {[%emt 0:11:18]} Qe7 {[%emt 0:22:17]} 13. O-O {[%emt 0:13:58]} Nf6 {
[%emt 0:00:00]} 14. b4 {[%emt 0:02:45]} Bd7 {[%emt 0:00:00]} 15. c5 {[%emt 0:
00:00]} Bxe5 {[%emt 0:00:00]} 16. dxe5 {[%emt 0:00:08]} Ng4 {[%emt 0:00:00]}
17. Qe2 {[%emt 0:05:43]} Qh4 {[%emt 0:01:59][%csl Gg4][%cal Rh4h2]} 18. h3 {
[%emt 0:00:11]} Nh6 {[%emt 0:00:00]} 19. f4 {[%emt 0:02:18]} g5 {[%emt 0:09:45]
} 20. Qf2 {[%emt 0:01:04]} Qh5 {[%emt 0:02:18]} 21. fxg5 {[%emt 0:01:56]} (21.
a4 $16) 21... Qxg5 $14 {[%emt 0:02:13]} 22. Qf4 {[%emt 0:00:00]} Qh5 {[%emt 0:
00:00]} 23. Bc3 {[%emt 0:11:01]} Rf7 {[%emt 0:00:00]} 24. Rf3 $36 {[%emt 0:00:
00] White is pushing.} Rg7 {[%emt 0:02:05]} 25. Raf1 {[%emt 0:07:11][%cal
Ye3e4]} Kf7 {[%emt 0:00:00]} (25... Kh8 $14) 26. R1f2 $16 {[%emt 0:04:09]} ({
But not} 26. Rg3 Rxg3 27. Qxg3 Rg8 $11) 26... Rag8 {[%emt 0:00:00]} 27. Be2 {
[%emt 0:02:09]} (27. e4 $16 {[%cal Re4f5]} dxe4 28. Bxe4) 27... Qg6 {[%emt 0:
00:00]} (27... Ke8 $14) 28. e4 $1 $18 {[%emt 0:01:39] Strongly threatening
exd5.} dxe4 {[%emt 0:03:04]} (28... Qg5 {might work better.}) 29. Qxe4 {
[%emt 0:00:07]} Ke8 {[%emt 0:01:14]} 30. Qh4 {[%emt 0:00:29]} Nf7 $2 {[%emt 0:
00:00]} (30... Qg5 {was worth a try.} 31. Qd4 Nf7) 31. Rd3 {[%emt 0:01:01]} Qg5
{[%emt 0:01:56] [#]} 32. Qd4 {[%emt 0:00:18]} Bc8 {[%emt 0:02:46]} 33. Bd2 {
[%emt 0:00:58]} Qd8 {[%emt 0:03:50]} 34. Qc4 {[%emt 0:01:06] Prevents Qd5.} Qe7
{[%emt 0:01:33]} 35. Bh5 {[%emt 0:01:46]} Rg3 {[%emt 0:01:15]} 36. Bf4 {
[%emt 0:02:58] A strong pair of Bishops.} (36. Rxg3 $18 Rxg3 37. Bh6) 36...
Rxd3 {[%emt 0:01:19]} 37. Qxd3 {[%emt 0:00:05]} Kf8 {[%emt 0:00:25]} 38. g4 {
[%emt 0:01:43] White is much more active.} Kg7 {[%emt 0:02:49]} 39. gxf5 $2 {
[%emt 0:00:42]} (39. Kh2 $18) 39... exf5 {[%emt 0:01:05]} 40. e6 {[%emt 0:00:
00]} ({White should play} 40. Kh2 $14) 40... Bxe6 $11 {[%emt 0:00:17]} 41. Kh2
{[%emt 0:30:36] Black must now prevent Qd4+.} Qf6 {[%emt 0:08:00] Against Qd4}
42. Re2 {[%emt 0:00:00] Threatens to win with Qg3+.} Bd5 {[%emt 0:04:37]} (
42... Kh8 $2 43. Bxf7 Bxf7 44. Be5 Qxe5+ 45. Rxe5 $18) 43. Bf3 {[%emt 0:00:00]}
Bxf3 {[%emt 0:01:10]} 44. Qxf3 {[%emt 0:00:00]} h6 {[%emt 0:00:26]} 45. Bd2 {
[%emt 0:00:43]} ({White should try} 45. Bc1 $11 Ng5 46. Qf2) 45... Kh7 {
[%emt 0:08:11]} (45... Ng5 $1 $15 46. Qg3 Kh7 47. Bxg5 Qxg5 48. Qxg5 hxg5) 46.
Bc3 {[%emt 0:00:02] [#]} (46. Rf2 $11 {keeps the balance.}) 46... Ng5 $1 $17 {
[%emt 0:04:07]} 47. Qe3 {[%emt 0:00:03]} Qf7 {[%emt 0:00:53] Hoping for ...
Qc7+.} 48. Qf4 {[%emt 0:01:08] Against Qc7} Nxh3 {[%emt 0:00:54]} 49. Qd6 $1
$11 {[%emt 0:01:08] White threatens Re7 and mate. The position is equal.} Ng5 {
[%emt 0:02:22] ( -> ...Nf3+)} (49... Nf4 $2 50. Re7 Rg2+ 51. Kh1 Qxe7 52. Qxe7+
Kg6 53. Qf6+ Kh5 54. Qxf5+ Rg5 55. Qxf4 $18) 50. Re7 {[%emt 0:00:20]} Nf3+ {
[%emt 0:00:06]} 51. Kh3 {[%emt 0:00:06]} Ng1+ {[%emt 0:00:12]} 52. Kh2 {
[%emt 0:00:05] Really sharp!} Nf3+ {[%emt 0:00:40] White really could win this.
Weighted Error Value: White=0.23 (precise) /Black=0.17 (very precise)} 1/2-1/2

[Event "44th Chess Olympiad Open 2022"]
[Site "Chennai"]
[Date "2022.08.07"]
[Round "9.27"]
[White "Kjartansson, Gudmundur"]
[Black "Murshed, Niaz"]
[Result "1-0"]
[WhiteElo "2448"]
[BlackElo "2413"]
[Annotator "TA"]
[PlyCount "79"]
[EventDate "2022.??.??"]
[TimeControl "60"]

{[%evp 15,79,45,58,33,49,63,78,77,80,79,71,62,74,55,70,64,63,62,63,14,29,15,9,
-10,0,0,18,22,102,95,92,55,112,110,139,136,136,94,104,94,104,97,96,95,81,50,95,
73,82,65,145,135,146,138,138,141,303,87,373,374,748,754,657,459,558,554]} 1. d4
{[%emt 0:00:06]} Nf6 {[%emt 0:00:23]} 2. c4 {[%emt 0:00:26]} e6 {[%emt 0:00:14]
} 3. Nf3 {[%emt 0:00:16]} Bb4+ {[%emt 0:02:05]} 4. Nbd2 {[%emt 0:00:22]} d5 {
[%emt 0:06:23]} 5. Qa4+ {[%emt 0:01:28]} Nc6 {[%emt 0:00:09]} 6. e3 {[%emt 0:
00:00]} O-O {[%emt 0:03:10]} 7. a3 {[%emt 0:01:40]} Bxd2+ {[%emt 0:15:48]} 8.
Bxd2 {[%emt 0:00:06]} Ne4 {[%emt 0:03:11]} 9. Rd1 {[%emt 0:21:51] E11:
Bogo-Indian.} Qe7 {[%emt 0:06:54] [#]} 10. Bd3 $146 {[%emt 0:06:42]} ({
Predecessor:} 10. Bc1 Nd6 11. c5 Ne4 12. Qc2 e5 13. dxe5 Bf5 14. Bd3 Bg6 15. b4
Nxe5 16. Nxe5 Qxe5 {1-0 (34) Cmilyte,V (2514)-Paehtz,E (2455) Germany 2014})
10... Nxd2 {[%emt 0:09:07]} 11. Rxd2 {[%emt 0:00:51] White is better.} Bd7 {
[%emt 0:02:19][%cal Yc6d4]} 12. Qc2 {[%emt 0:04:34]} h6 {[%emt 0:00:04]} 13.
O-O {[%emt 0:02:14]} Rfd8 {[%emt 0:06:15]} 14. b4 {[%emt 0:01:24][%cal Yb2b4,
Yb4b5]} a5 {[%emt 0:14:32]} 15. cxd5 {[%emt 0:03:36]} exd5 {[%emt 0:00:00]} 16.
b5 {[%emt 0:00:12]} Na7 {[%emt 0:00:08]} 17. Qxc7 {[%emt 0:00:42]} (17. Qb2 $14
) 17... Qxa3 $11 {[%emt 0:00:30]} 18. Ne5 {[%emt 0:14:02]} Be8 {[%emt 0:00:25]}
19. Rdd1 {[%emt 0:11:00][%cal Yd2d1,Yd1b1,Yb1b2] [#] Strongly threatening Ra1.}
Qd6 {[%emt 0:15:28]} 20. Qxa5 {[%emt 0:00:33] Hoping for Ra1.} ({Don't go for} 
20. Qxb7 $2 Rdb8 21. Qa6 Qd8 $19) 20... b6 {[%emt 0:01:52]} (20... Nxb5 $5 {
[%cal Ra8a5]} 21. Qe1 Na3 $11) 21. Qd2 $36 {[%emt 0:01:55] White has the
initiative.} Bxb5 {[%emt 0:00:30]} (21... Nxb5 $11 22. Rfe1 Na3) 22. Rb1 {
[%emt 0:12:31]} Bxd3 {[%emt 0:03:52]} 23. Qxd3 {[%emt 0:00:11]} b5 {[%emt 0:00:
14]} (23... Nc6 $14) 24. Qf5 $16 {[%emt 0:00:00]} Qe6 {[%emt 0:04:19]} 25. Qxe6
{[%emt 0:01:07] White is much more active.} fxe6 {[%emt 0:00:03]} 26. Rb2 {
[%emt 0:01:49]} Rac8 {[%emt 0:01:12]} 27. g4 {[%emt 0:01:08]} Rc7 {[%emt 0:00:
48]} 28. Kg2 {[%emt 0:03:09]} Rb8 {[%emt 0:00:15]} 29. Rfb1 {[%emt 0:00:11]}
Kf8 {[%emt 0:01:24]} 30. Nd3 {[%emt 0:03:02]} Ke7 {[%emt 0:01:14]} 31. Nc5 {
[%emt 0:00:18]} Rb6 {[%emt 0:00:00] Against Na6} 32. f4 {[%emt 0:00:17]} Rbc6 {
[%emt 0:01:03]} (32... g5 $14) 33. h4 {[%emt 0:00:28][%cal Yh2h4,Yh4h5]} Kd6 {
[%emt 0:01:19]} 34. Kf3 {[%emt 0:00:23]} Rb6 {[%emt 0:00:31]} 35. h5 {[%emt 0:
00:19]} Rc8 $2 {[%emt 0:00:00]} (35... Rf7 $16 {was called for.} 36. e4 dxe4+
37. Kxe4 (37. Nxe4+ Ke7 $16) 37... Rb8) 36. Rg1 $2 {[%emt 0:00:33]} (36. g5 $18
) 36... Rf8 $2 {[%emt 0:00:00]} (36... Nc6 $16) 37. g5 $18 {[%emt 0:00:12] [#]
Black must now prevent gxh6.} hxg5 {[%emt 0:00:51]} (37... Nc6 38. gxh6 gxh6)
38. Rxg5 {[%emt 0:00:04] White is clearly winning.} Rf7 {[%emt 0:00:10]} 39.
Rg6 {[%emt 0:02:10]} Re7 {[%emt 0:00:09]} 40. f5 {[%emt 0:01:08] Weighted
Error Value: White=0.29 (precise) /Black=0.42} 1-0

[Event "44th Chess Olympiad Open 2022"]
[Site "Chennai"]
[Date "2022.08.07"]
[Round "9.27"]
[White "Rahman, Ziaur"]
[Black "Stefansson, Hannes"]
[Result "1/2-1/2"]
[WhiteElo "2424"]
[BlackElo "2541"]
[Annotator "TA"]
[PlyCount "61"]
[EventDate "2022.??.??"]
[TimeControl "60"]

{[%evp 9,61,0,0,-35,0,-30,-24,-32,-11,-41,0,-16,-13,-28,0,0,0,0,0,0,0,-24,0,
-37,0,0,0,0,0,-179,-179,-150,-173,-215,0,0,0,0,0,0,0,0,0,0,0,0,0,0,0,0,0,0,0,0]
} 1. d4 {[%emt 0:00:05]} Nf6 {[%emt 0:00:10]} 2. Bg5 {[%emt 0:01:03]} d5 {
[%emt 0:00:28]} 3. e3 {[%emt 0:00:29]} c5 {[%emt 0:01:45]} 4. Bxf6 {[%emt 0:00:
00]} gxf6 {[%emt 0:01:00]} 5. Nc3 {[%emt 0:03:38]} e6 {[%emt 0:01:46]} 6. Bb5+
{[%emt 0:01:56] D01: Veresov Opening.} Nc6 {[%emt 0:06:17]} 7. Nge2 {[%emt 0:
00:00][%cal Yg1e2,Ye2f4,Yf4h5] [#]} f5 $146 {[%emt 0:08:03]} ({Predecessor:} 
7... Bd7 8. a3 f5 9. Bxc6 Bxc6 10. Nf4 Qf6 11. Qd2 Bd6 12. g3 O-O-O 13. O-O-O
Kb8 {½-½ (79) Becerra,J (2341)-Laliena Solanes,L (2179) San Sebastian 2017})
8. O-O {[%emt 0:01:03] Black has an edge.} Bd7 {[%emt 0:03:12]} 9. Nf4 {
[%emt 0:10:05]} Qf6 {[%emt 0:03:28][%cal Rc5d4]} 10. dxc5 {[%emt 0:00:00]} Bxc5
{[%emt 0:03:31]} 11. Na4 {[%emt 0:01:08]} Bd6 {[%emt 0:03:27]} 12. c4 {[%emt 0:
03:24]} d4 {[%emt 0:05:34]} 13. Nh5 {[%emt 0:03:05]} Qh6 {[%emt 0:00:00]} 14.
exd4 {[%emt 0:00:48]} Rg8 {[%emt 0:02:26]} 15. f4 {[%emt 0:17:15]} (15. Ng3 $5
{[%cal Rd4d5]}) 15... O-O-O {[%emt 0:00:42]} (15... Qg6 16. Ng3 $14) 16. d5 $1
{[%emt 0:03:45]} exd5 {[%emt 0:00:25]} ({Much less strong is} 16... Qg6 17. Ng3
exd5 18. cxd5 $14) (16... Bc7 $5 17. Qe2 (17. dxc6 $2 Bxc6 18. Qxd8+ Rxd8 $19)
17... Nd4 18. Bxd7+ Rxd7 $11) 17. cxd5 {[%emt 0:00:07]} Ne7 {[%emt 0:00:20]}
18. Bxd7+ {[%emt 0:05:40]} Rxd7 {[%emt 0:03:13]} 19. Qd4 $2 {[%emt 0:03:32]}
Qxh5 $19 {[%emt 0:10:35]} 20. Qxa7 {[%emt 0:00:23] [#]} Kd8 $1 {[%emt 0:01:59]
Hoping for ...Qh3.} ({Don't play} 20... Nxd5 21. Rac1+ Rc7 22. Qa8+ Kd7 23.
Rxc7+ (23. Qxg8 Bxf4 24. Rxc7+ Kxc7 $18) 23... Kxc7 24. Rc1+ (24. Qxg8 Bxf4 25.
h3 Qg6 $18) 24... Kd7 25. Qxg8 $18) 21. Rac1 {[%emt 0:09:03] Black must now
prevent Qa8+.} Rc7 $2 {[%emt 0:01:10]} (21... Ke8 $19 22. g3 Qe2) 22. Rxc7 $1
$11 {[%emt 0:03:14] Chess con chili. The position is equal.} Bxc7 {[%emt 0:00:
42]} 23. Nc5 $36 {[%emt 0:01:36] White has the initiative.} Qe2 $1 {[%emt 0:13:
05][%csl Gg8][%cal Re2g2]} (23... Qh3 $2 24. Nxb7+ Kd7 25. Qa4+ Nc6 26. dxc6+
$18) 24. Nxb7+ {[%emt 0:00:47]} Kd7 {[%emt 0:00:00][%csl Gg8][%cal Re2g2] [#]}
(24... Ke8 $5 25. Qa8+ Kd7 26. Qa4+ Kc8 27. Qa8+ Kd7 28. Qa4+ Kc8 29. Qa8+ Kd7
$11) 25. Qa4+ $1 {[%emt 0:02:26]} Kc8 {[%emt 0:00:16][%csl Gg8][%cal Re2g2]}
26. Qa8+ {[%emt 0:00:19]} Kd7 {[%emt 0:00:00][%csl Gg8][%cal Re2g2]} 27. Qa4+ {
[%emt 0:00:19]} Kc8 {[%emt 0:00:06][%csl Gg8][%cal Re2g2]} 28. Qa8+ {[%emt 0:
00:04]} Kd7 {[%emt 0:00:19][%csl Gg8][%cal Re2g2]} 29. Qa4+ {[%emt 0:00:07]}
Kc8 {[%emt 0:00:07][%csl Gg8][%cal Re2g2]} 30. Qa8+ {[%emt 0:00:05]} Kd7 {
[%emt 0:00:08][%csl Gg8][%cal Re2g2]} 31. Qa4+ {[%emt 0:00:08] Weighted Error
Value: White=0.18 (very precise) / Black=0.21 (precise)} 1/2-1/2

[Event "44th Chess Olympiad Open 2022"]
[Site "Chennai"]
[Date "2022.08.07"]
[Round "9.27"]
[White "Mehdi Hasan Parag"]
[Black "Gretarsson, Helgi Ass"]
[Result "1/2-1/2"]
[WhiteElo "2227"]
[BlackElo "2472"]
[Annotator "ChessBase"]
[PlyCount "116"]
[EventDate "2022.??.??"]
[TimeControl "60"]

1. e4 {[%emt 0:00:05]} e5 {[%emt 0:00:16]} 2. Nf3 {[%emt 0:00:11]} Nc6 {
[%emt 0:00:13]} 3. Bb5 {[%emt 0:00:47]} a6 {[%emt 0:00:07]} 4. Ba4 {[%emt 0:00:
00]} Nge7 {[%emt 0:00:06]} 5. c3 {[%emt 0:01:13]} Ng6 {[%emt 0:00:09]} 6. O-O {
[%emt 0:01:22]} d6 {[%emt 0:00:39]} 7. d4 {[%emt 0:00:37]} Bd7 {[%emt 0:00:05]}
8. Be3 {[%emt 0:01:59]} Be7 {[%emt 0:01:34]} 9. Nbd2 {[%emt 0:06:33]} O-O {
[%emt 0:05:37]} 10. dxe5 {[%emt 0:00:00]} Ncxe5 {[%emt 0:18:01]} 11. h3 {
[%emt 0:02:50]} Bxa4 {[%emt 0:14:22]} 12. Qxa4 {[%emt 0:00:08]} Qd7 {[%emt 0:
00:00]} 13. Qc2 {[%emt 0:03:40]} Nc6 {[%emt 0:10:29]} 14. Nd4 {[%emt 0:05:22]}
d5 {[%emt 0:16:38]} 15. Rad1 {[%emt 0:04:08]} Rfe8 {[%emt 0:03:23]} 16. Rfe1 {
[%emt 0:09:14]} Rad8 {[%emt 0:02:25]} 17. exd5 {[%emt 0:06:46]} Qxd5 {[%emt 0:
00:00]} 18. Nxc6 {[%emt 0:03:03]} Qxc6 {[%emt 0:00:05]} 19. Nf3 {[%emt 0:00:59]
} Bf6 {[%emt 0:02:27]} 20. Qb3 {[%emt 0:04:30]} Qb5 {[%emt 0:01:37]} 21. Qxb5 {
[%emt 0:01:03]} axb5 {[%emt 0:00:01]} 22. Kf1 {[%emt 0:01:53]} Ra8 {[%emt 0:00:
00]} 23. a3 {[%emt 0:00:53]} Nf8 {[%emt 0:08:08]} 24. Bd4 {[%emt 0:00:58]} Be7
{[%emt 0:00:49]} 25. Be5 {[%emt 0:02:50]} c6 {[%emt 0:00:13]} 26. Nd4 {[%emt 0:
00:00]} f6 {[%emt 0:01:41]} 27. Bg3 {[%emt 0:00:54]} g6 {[%emt 0:04:52]} 28.
Nb3 {[%emt 0:02:35]} Kf7 {[%emt 0:00:13]} 29. Re2 {[%emt 0:03:15]} Red8 {
[%emt 0:00:44]} 30. Red2 {[%emt 0:01:39]} Rxd2 {[%emt 0:00:31]} 31. Rxd2 {
[%emt 0:00:06]} Ke8 {[%emt 0:00:14]} 32. Ke2 {[%emt 0:10:26]} Nd7 {[%emt 0:00:
00]} 33. Bd6 {[%emt 0:05:22]} Bxd6 {[%emt 0:00:19]} 34. Rxd6 {[%emt 0:00:06]}
Ke7 {[%emt 0:00:02]} 35. Rd4 {[%emt 0:00:38]} c5 {[%emt 0:06:10]} 36. Re4+ {
[%emt 0:01:47]} Kd6 {[%emt 0:00:12]} 37. f4 {[%emt 0:02:48]} Nb6 {[%emt 0:00:
00]} 38. Kd1 {[%emt 0:05:02]} Nd5 {[%emt 0:02:59]} 39. Kc2 {[%emt 0:06:46]} f5
{[%emt 0:00:44]} 40. Re5 {[%emt 0:00:42]} Nxf4 {[%emt 0:00:36]} 41. Rxc5 {
[%emt 0:30:56]} Re8 {[%emt 0:13:50]} 42. Rxb5 {[%emt 0:00:00]} Re2+ {[%emt 0:
00:00]} 43. Kb1 {[%emt 0:00:00]} Kc7 {[%emt 0:00:24]} 44. g4 {[%emt 0:00:00]}
Nxh3 {[%emt 0:02:53]} 45. gxf5 {[%emt 0:00:00]} g5 {[%emt 0:00:04]} 46. Nd4 {
[%emt 0:00:00]} Rf2 {[%emt 0:00:03]} 47. Re5 {[%emt 0:00:00]} h5 {[%emt 0:00:
00]} 48. Re7+ {[%emt 0:00:00]} Kd6 {[%emt 0:00:52]} 49. Rxb7 {[%emt 0:00:00]}
Nf4 {[%emt 0:00:18]} 50. f6 {[%emt 0:00:00]} Nd3 {[%emt 0:01:06]} 51. Rb5 {
[%emt 0:00:00]} Ne5 {[%emt 0:01:15]} 52. c4 {[%emt 0:00:00]} Nxc4 {[%emt 0:00:
00]} 53. Rxg5 {[%emt 0:00:00]} Rxb2+ {[%emt 0:00:17]} 54. Kc1 {[%emt 0:00:00]}
Rf2 {[%emt 0:00:06]} 55. Rxh5 {[%emt 0:00:00]} Nxa3 {[%emt 0:00:35]} 56. Rf5 {
[%emt 0:00:00]} Rxf5 {[%emt 0:00:06]} 57. Nxf5+ {[%emt 0:00:00]} Ke6 {[%emt 0:
00:00]} 58. f7 {[%emt 0:00:00]} Kxf7 {[%emt 0:00:04]} 1/2-1/2

[Event "44th Chess Olympiad Open 2022"]
[Site "Chennai"]
[Date "2022.08.07"]
[Round "9.28"]
[White "Kantans, Toms"]
[Black "Hansen, Eric"]
[Result "0-1"]
[WhiteElo "2486"]
[BlackElo "2606"]
[Annotator "TA"]
[PlyCount "50"]
[EventDate "2022.??.??"]
[TimeControl "60"]

{[%evp 11,49,18,31,22,37,13,32,-13,-18,-33,-28,-33,-10,-56,-54,-62,-48,-64,-29,
-32,-30,-15,-23,-88,-49,-56,-62,-52,-58,-254,-239,-338,-334,-296,-323,-408,
-393,-555,-564,-29999]} 1. e4 {[%emt 0:00:02]} c5 {[%emt 0:00:45]} 2. Nf3 {
[%emt 0:00:13]} Nc6 {[%emt 0:01:19]} 3. Bb5 {[%emt 0:00:37]} e6 {[%emt 0:02:00]
} 4. O-O {[%emt 0:05:32]} Nge7 {[%emt 0:03:32]} 5. d4 {[%emt 0:02:30]} cxd4 {
[%emt 0:02:48]} 6. Nxd4 {[%emt 0:02:40]} Qb6 {[%emt 0:01:49] 6...Ng6 injects
fresh life into this line.} 7. Nxc6 {[%emt 0:03:33] B30: Sicilian: 2...Nc6 3
Bb5, lines without ...g6.} bxc6 {[%emt 0:05:30]} 8. Bd3 {[%emt 0:02:16][%cal
Yb5d3,Yd3e4,Ye4g2]} Ng6 {[%emt 0:03:08] [#]} 9. a4 $146 {[%emt 0:00:00] White
is slightly better.} ({Predecessor:} 9. c4 Be7 10. Nc3 O-O 11. Na4 Qc7 12. c5
d5 13. cxd6 Bxd6 14. g3 Ne5 15. Be2 {½-½ (64) Xiong,J (2709) -Swiercz,D 
(2649) Chess.com INT 2021}) 9... Be7 {[%emt 0:10:57]} 10. a5 {[%emt 0:01:57]}
Qc7 {[%emt 0:00:13]} 11. f4 {[%emt 0:05:06]} d5 {[%emt 0:10:00]} 12. Qh5 {
[%emt 0:06:51]} (12. Nc3 $11) 12... dxe4 $15 {[%emt 0:05:13]} 13. Bxe4 {
[%emt 0:02:23]} Ba6 {[%emt 0:00:08]} 14. Re1 {[%emt 0:04:57]} O-O {[%emt 0:04:
34]} (14... f5 $5 {[%cal Rf5e4]} 15. Bf3 O-O $15) 15. g3 {[%emt 0:00:00]} f5 {
[%emt 0:03:19]} 16. Bg2 {[%emt 0:03:22]} e5 {[%emt 0:05:19][%cal Ye6e5,Ye5f4,
Yf4g3,Yg3h2]} 17. Qf3 {[%emt 0:03:53]} (17. fxe5 $11 {remains equal.} Rae8 18.
Nc3) 17... Bc5+ {[%emt 0:06:03]} 18. Be3 {[%emt 0:00:00]} Bxe3+ {[%emt 0:01:57]
} 19. Qxe3 {[%emt 0:06:11][%cal Rf4e5]} exf4 {[%emt 0:08:37]} 20. Qc5 {[%emt 0:
05:54] [#] Now White is beyond hope.} (20. Qe6+ $15 Kh8 21. Qxc6 Qxc6 22. Bxc6)
20... fxg3 $19 {[%emt 0:01:34]} 21. Nc3 {[%emt 0:00:15]} (21. Qxc6 {was worth
a try.} gxh2+ 22. Kh1 Qxc6 23. Bxc6) 21... gxh2+ {[%emt 0:02:00]} 22. Kh1 {
[%emt 0:00:05]} Rac8 {[%emt 0:02:25]} 23. Re6 {[%emt 0:03:23]} Qg3 {[%emt 0:02:
20] [#] Hoping for ...Nf4.} 24. Re3 {[%emt 0:00:00]} (24. Qe3 $142 Qb8 25. Bf1)
24... Qf2 {[%emt 0:00:00] Strongly threatening ...Nf4.} 25. Nd1 {[%emt 0:01:30]
} Qg1# {[%emt 0:01:31] Weighted Error Value: White=0.71/Black=0.05 (flawless)}
0-1